Cogmind - Beta 10.2 @@@ ROGUE MODE // 2021.08.30 @ 00:36:30 Player: zapruda Result: Destroyed by H-66 Slayer with Gauss Rifle Performance ------------- Evolutions (5) 2500 Regions Visited (6) 1200 Robots Destroyed (91) 455 Value Destroyed (3032) 3032 Prototype IDs (14) 280 Alien Tech Used (0) 0 Bonus (279) 279 TOTAL SCORE: 7746 Bonus ------- High Alert Combat Kills 279 Cogmind --------- Core Integrity 0/1000 Matter 16/300 Energy 83/100 System Corruption 2% Temperature Cool (0) Movement Core (50) Location -5/Factory Parts ------- > --- POWER (2) -------- (None) > --- PROPULSION (3) --- (None) > --- UTILITY (8) ------ Enhanced Optical Array Advanced Targeting Computer Hacking Suite > --- WEAPON (4) ------- (None) > --- INVENTORY (4) ---- Angular Momentum Engine Advanced Coolant Injector Improved Force Field Peak State ------------ > --- POWER ------------ Improved Deuterium Engine F-cell Engine > --- PROPULSION ------- Improved Titanium Leg Armored Wheel Armored Wheel > --- UTILITY ---------- Advanced Coolant Injector High-capacity Storage Unit Matter Compressor Advanced Targeting Computer Hacking Suite Hacking Suite > --- WEAPON ----------- Antimatter Cannon Antimatter Cannon Antimatter Cannon Precision Rocket Launcher > --- INVENTORY -------- Angular Momentum Engine Improved Titanium Leg Advanced Coolant Injector Energy Well Advanced Signal Interpreter Advanced Targeting Computer Matter Filter Advanced ECM Suite Improved Force Field Improved Force Field Improved System Backup Module Advanced Field Recycling Unit [Rating: 70] Favorites ----------- Power F-cell Engine Engine F-cell Engine Power Core Light Nuclear Core Propulsion Armored Wheel Treads Armored Treads Leg Aluminum Leg Wheel Armored Wheel Hover Unit Combat Airjet Utility High-capacity Storage Unit Device Cryofiber Web Storage High-capacity Storage Unit Processor Advanced Targeting Computer Hackware Hacking Suite Weapon Minigun Energy Gun EM Pulse Gun Ballistic Gun Minigun Ballistic Cannon Antimatter Cannon Launcher Precision Rocket Launcher Build | -11 -10 -9 -8 -7 -6 -5 ------- Run | Scr Mat Mat Mat Fac Fac Fac Slots Evolved 10 | . . 2 2 2 2 2 Power 1 | . . 1 . . . . Propulsion 1 | . . 1 . . . . Utility 6 | . . . 2 1 1 2 Weapon 2 | . . . . 1 1 . Parts Attached 110 | . 9 17 37 4 35 8 Power 18 | . 1 5 6 1 5 . Engine 15 | . 1 5 4 . 5 . Core 3 | . . . 2 1 . . Reactor . | . . . . . . . Propulsion 34 | . 3 8 14 . 5 4 Treads 1 | . . . . . 1 . Leg 14 | . 1 2 8 . 3 . Wheel 14 | . 2 6 5 . 1 . Hover 5 | . . . 1 . . 4 Flight . | . . . . . . . Utility 29 | . 4 . 6 2 14 3 Device 16 | . . . 3 1 11 1 Storage 5 | . 4 . . . 1 . Processor 3 | . . . 1 . 1 1 Hackware 5 | . . . 2 1 1 1 Protection . | . . . . . . . Artifact . | . . . . . . . Weapon 29 | . 1 4 11 1 11 1 Energy Gun 7 | . . 2 3 . 1 1 Energy Cannon . | . . . . . . . Ballistic Gun 16 | . 1 2 8 1 4 . Ballistic Cannon 4 | . . . . . 4 . Launcher 2 | . . . . . 2 . Special Weapon . | . . . . . . . Impact Weapon . | . . . . . . . Slashing Weapon . | . . . . . . . Piercing Weapon . | . . . . . . . Special Melee Weapon . | . . . . . . . Unidentified Prototypes 9 | . . 1 4 . 3 1 Parts Lost 55 | . 3 5 12 1 20 14 Power 11 | . 1 1 4 1 3 1 Propulsion 19 | . 1 2 5 . 4 7 Utility 10 | . . . 1 . 4 5 Weapon 15 | . 1 2 2 . 9 1 Highest Loss Streak 10 | . 2 3 10 1 7 8 Average Slot Usage (%) 90 | . 99 91 96 99 91 43 Engine 10 | . 13 17 8 7 10 1 Core 2 | . . . 8 6 . . Leg 6 | . 21 2 7 . 3 5 Wheel 14 | . 6 28 17 23 13 . Device 6 | . . . 11 3 9 2 Storage 14 | . 27 22 18 15 8 1 Processor 4 | . . . 1 7 6 11 Hackware 7 | . . . 4 11 11 10 Energy Gun 3 | . 14 6 2 . . . Ballistic Gun 12 | . 14 14 14 23 11 . Ballistic Cannon 2 | . . . . . 6 . Launcher 1 | . . . . . 2 . Naked Turns . | . . . . . . . Heaviest Build 103 | 12 72 82 85 87 103 51 Greatest Support 66 | 20 20 36 45 36 55 66 Greatest Overweight (x) 10 | . 7 4 8 2 8 10 Average Overweight (x) 2 | . 3 2 2 2 1 . Largest Inventory Capacity 20 | 6 20 20 20 20 20 12 Average Capacity 15 | 6 17 20 20 20 12 7 Most Carried 20 | 6 15 20 20 19 20 12 Average Carried 13 | 6 11 14 17 18 12 6 Final Capacity 20 | 6 20 20 20 20 12 4 Final Carried 20 | 6 14 18 20 18 11 3 Class Distribution -------------------- 33% | Hauler-Mutant 21% | Hacker-Gunner 19% | Hacker-Mutant 13% | Mutant 6% | Scavenger-Mutant 3% | Hauler-Gunner 3% | Gunner Dominant Class ---------------- Mutant | -10/Materials Hauler-Mutant | -9/Materials Hauler-Mutant | -8/Materials Hacker-Gunner | -7/Factory Hacker-Gunner | -6/Factory Hacker-Mutant | -5/Factory Resources | -11 -10 -9 -8 -7 -6 -5 ----------- Run | Scr Mat Mat Mat Fac Fac Fac Matter Collected 2667 | 200 119 280 687 64 1317 . Remotely 856 | . . . . . 856 . Salvage Created 3741 | . 557 468 1236 64 1416 . Parts 212 | . 27 25 90 3 67 . Haulers Intercepted 3 | . . 1 2 . . . Recyclers Shooed 11 | . 3 1 3 . 4 . Parts Field Recycled . | . . . . . . . Retrieved Matter . | . . . . . . . Parts Self-Destructed . | . . . . . . . Prevented . | . . . . . . . Kills | -11 -10 -9 -8 -7 -6 -5 ------- Run | Scr Mat Mat Mat Fac Fac Fac Combat Hostiles Destroyed 70 | . 11 9 23 1 26 . Guns 60 | . 11 9 22 1 17 . Cannons 4 | . . . . . 4 . AOE 6 | . . . 1 . 5 . Classes Destroyed 12 | . 4 3 2 . 3 . Worker 4 | . . 1 2 . 1 . Builder 3 | . . . 1 . 2 . Hauler 3 | . . 1 2 . . . Recycler 5 | . 1 1 2 . 1 . Operator 5 | . 2 . . . 3 . Watcher 1 | . . . . . 1 . Swarmer 17 | . 3 3 8 . 3 . Grunt 34 | . 8 5 7 . 14 . Duelist 1 | . . . . . 1 . Sentry 13 | . . 1 6 1 5 . Hunter 2 | . . . 2 . . . Programmer 3 | . . . . . 3 . Best Kill Streak 14 | . 3 3 14 1 6 . Combat Bots Only 11 | . 3 2 11 1 5 . Max Kills in Single Turn 4 | . 1 1 1 1 4 . Gunslinging . | . . . . . . . Exploded 3 | . . . 1 . 3 . Melee . | . . . . . . . Uniques/NPCs Destroyed . | . . . . . . . Combat | -11 -10 -9 -8 -7 -6 -5 -------- Run | Scr Mat Mat Mat Fac Fac Fac Damage Taken 7882 | . 538 512 1357 271 3243 1961 Core 1867 | . 77 95 218 50 424 1003 Absorbed by Shields 320 | . . . 70 . 250 . Core Remaining (%) 74 | 100 69 76 60 92 50 . Volleys Fired 289 | . 41 48 81 5 109 5 Largest 4 | . 2 2 2 3 4 1 Hottest 163 | . 60 73 75 75 163 100 Shots Fired 640 | . 81 89 148 15 302 5 Gun 582 | . 81 89 148 15 244 5 Cannon 54 | . . . . . 54 . Launcher 4 | . . . . . 4 . Special . | . . . . . . . Kinetic 531 | . 40 66 115 15 295 . Thermal 8 | . . . . . 3 5 Explosive 4 | . . . . . 4 . Electromagnetic 97 | . 41 23 33 . . . Robot Hit Streak 22 | . 14 14 22 4 16 11 Robot Miss Streak 6 | . 6 4 5 1 5 4 Penetration Max . | . . . . . . . Secondary Targets 11 | . 3 2 3 . 3 . Max Gunslinging Chain 1 | . 1 1 1 . 1 . Shots Hit Robots 429 | . 49 56 108 10 202 4 Core Hits 179 | . 26 17 48 3 81 4 Critical Hits 4 | . . 1 3 . . . Critical Kills 4 | . . 1 3 . . . Critical Parts Destroyed . | . . . . . . . Melee Attacks . | . . . . . . . Impact . | . . . . . . . Slashing . | . . . . . . . Piercing . | . . . . . . . Sneak Attacks . | . . . . . . . Combat Hostiles . | . . . . . . . Follow-up Attacks . | . . . . . . . Damage Inflicted 8362 | . 579 642 1991 166 4812 172 Guns 6155 | . 579 642 1816 166 2788 164 Cannons 1248 | . . . . . 1248 . Explosions 883 | . . . 164 . 719 . Melee . | . . . . . . . Ramming 76 | . . . 11 . 57 8 Kinetic 6099 | . 155 482 1298 166 3998 . Thermal 366 | . . . 164 . 38 164 Explosive 719 | . . . . . 719 . Electromagnetic 1102 | . 424 160 518 . . . Impact . | . . . . . . . Slashing . | . . . . . . . Piercing . | . . . . . . . Highest Corruption 3 | . 2 . . 1 3 2 Average Corruption 1 | . 2 . . 1 1 1 Corruption Purged 3 | . . . . . 3 . Effects 6 | . 1 . . . 5 . Message Errors 1 | . . . . . 1 . Heat Flow Errors 1 | . . . . . 1 . Energy Discharges 3 | . 1 . . . 2 . Data Loss (minor) 1 | . . . . . 1 . Overload Shots . | . . . . . . . Overflow Damage 125 | . . . 13 . 112 . Projectiles 112 | . . . . . 112 . Explosions 13 | . . . 13 . . . Melee . | . . . . . . . Knockbacks 8 | . . . . . 8 . Impact . | . . . . . . . Kinetic 8 | . . . . . 8 . Secondary . | . . . . . . . Self-Inflicted Damage 111 | . . . 55 . 53 3 Shots 2 | . . . 1 . 1 . Rammed 18 | . . . 1 . 13 4 Targets Rammed 20 | . . . 1 . 15 4 Kicked 2 | . . . . . 2 . Crushed . | . . . . . . . Highest Temperature 371 | . 248 198 129 86 371 40 Average Temperature 74 | . 87 58 25 42 122 19 Received Heat Transfer 2280 | . 225 195 357 54 1050 399 Effects 2 | . . . . . 2 . Energy Bleed 2 | . . . . . 2 . Siege Activations . | . . . . . . . Robots Corrupted . | . . . . . . . Combat Hostiles . | . . . . . . . Parts Fried 5 | . 3 1 1 . . . Impact Corruptions . | . . . . . . . Robots Melted . | . . . . . . . Combat Hostiles . | . . . . . . . Parts Melted . | . . . . . . . Heat Transferred 449 | . . . 100 . 74 275 Parts Sabotaged . | . . . . . . . Parts Stolen . | . . . . . . . Parts Stripped . | . . . . . . . Power Chain Reactions 2 | . . . 2 . . . Missiles Intercepted . | . . . . . . . Alert | -11 -10 -9 -8 -7 -6 -5 ------- Run | Scr Mat Mat Mat Fac Fac Fac Peak Influence 584 | . 205 357 584 462 516 391 Initial 242 | . . 33 72 242 226 216 Average 300 | . 52 154 393 330 373 234 Maximum Alert Level 2 | . 1 1 2 2 2 1 Low Security (%) 24 | 100 93 70 9 . . 32 Level 1 40 | . 6 29 22 61 57 67 Level 2 35 | . . . 67 38 42 . Level 3 . | . . . . . . . Level 4 . | . . . . . . . Level 5 . | . . . . . . . High Security . | . . . . . . . Max Security . | . . . . . . . Squads Dispatched 24 | . 3 1 2 1 14 3 Investigation 9 | . 1 . 1 1 6 . Extermination 2 | . . . . . 2 . Reinforcement 10 | . 2 1 1 . 3 3 Assault . | . . . . . . . Garrison 3 | . . . . . 3 . Intercept . | . . . . . . . Construction Impeded 2 | . . . . . 1 1 Haulers Reinforced 1 | . . . . . 1 . Stealth | -11 -10 -9 -8 -7 -6 -5 --------- Run | Scr Mat Mat Mat Fac Fac Fac Distress Signals 3 | . . . 1 . . 2 Communications Jammed 6 | . . . 6 . . . Distress Signals 4 | . . . 4 . . . Times Spotted 136 | . 18 14 34 6 33 31 Peak Tracking Total 16 | . 5 4 10 4 6 16 Tactical Retreats 11 | . . 2 4 . 1 4 Traps | -11 -10 -9 -8 -7 -6 -5 ------- Run | Scr Mat Mat Mat Fac Fac Fac Traps Triggered 17 | . 2 3 3 . 9 . Indirectly . | . . . . . . . Trap Hack Attempts . | . . . . . . . Triggered . | . . . . . . . Disarmed . | . . . . . . . Reprogrammed . | . . . . . . . Reused . | . . . . . . . Traps Extracted . | . . . . . . . Installed . | . . . . . . . Triggered . | . . . . . . . Machines | -11 -10 -9 -8 -7 -6 -5 ---------- Run | Scr Mat Mat Mat Fac Fac Fac Machines Disabled 13 | . . 2 2 6 3 . Max in Single Turn 1 | . . 1 1 . 1 . Machines Sabotaged . | . . . . . . . Garrisons Compromised . | . . . . . . . Overloaded Fab Kills . | . . . . . . . Fab Network Shutdowns . | . . . . . . . Hacking | -11 -10 -9 -8 -7 -6 -5 --------- Run | Scr Mat Mat Mat Fac Fac Fac Machines Accessed 28 | . 4 4 5 3 12 . Terminals 12 | . 2 1 3 1 5 . Fabricators 3 | . . . . 2 1 . Repair Stations 1 | . . . . . 1 . Recycling Units 7 | . 2 2 . . 3 . Scanalyzers 5 | . . 1 2 . 2 . Garrison Access . | . . . . . . . Total Hacks 100 | . 6 8 38 9 39 . Successful 62 | . 3 7 30 5 17 . Failed 38 | . 3 1 8 4 22 . Catastrophic 4 | . . . . 1 3 . Database Lockouts . | . . . . . . . Manual . | . . . . . . . Terminals 44 | . 3 3 13 5 20 . Fabricators 9 | . . . . 4 5 . Repair Stations 3 | . . . . . 3 . Recycling Units 10 | . 3 3 . . 4 . Scanalyzers 34 | . . 2 25 . 7 . Garrison Access . | . . . . . . . Terminal Hacks 20 | . 1 3 5 2 9 . Part Schematic 6 | . . . . . 6 . Prototype ID Bank 2 | . . 1 . . 1 . Emergency Access Points 1 | . . . 1 . . . Terminal Index 1 | . . . . 1 . . Repair Station Index 1 | . . . . . 1 . Scanalyzer Index 1 | . . . 1 . . . Alert Level 2 | . . . 1 1 . . Locate Traps 1 | . . . 1 . . . Dispatch Records 1 | . . . . . 1 . Registered Components 2 | . . 1 1 . . . Zone Layout 2 | . 1 1 . . . . Fabricator Hacks 6 | . . . . 3 3 . Load Schematic 1 | . . . . . 1 . Build 5 | . . . . 3 2 . Repair Station Hacks 1 | . . . . . 1 . Scan Component 1 | . . . . . 1 . Recycling Unit Hacks 6 | . 2 2 . . 2 . Retrieve Components 6 | . 2 2 . . 2 . Scanalyzer 29 | . . 2 25 . 2 . Insert Component 13 | . . 1 11 . 1 . Analyze 16 | . . 1 14 . 1 . Garrison Access Hacks . | . . . . . . . Unauthorized Hacks . | . . . . . . . Terminals . | . . . . . . . Fabricators . | . . . . . . . Repair Stations . | . . . . . . . Recycling Units . | . . . . . . . Scanalyzers . | . . . . . . . Garrison Access . | . . . . . . . Data Cores Recovered 2 | . . . . . 2 . Used 1 | . . . . . 1 . Hacking Detections 23 | . 3 1 5 2 12 . Full Trace Events 9 | . . . 2 1 6 . Feedback Events 1 | . . . . 1 . . Corruption 1 | . . . . 1 . . Feedback Blocked . | . . . . . . . Robot Schematics Acquired . | . . . . . . . Robots Built 2 | . . . . 2 . . Matter 252 | . . . . 252 . . Time 44 | . . . . 44 . . Total Robot Build Rating 8 | . . . . 8 . . Part Schematics Acquired 19 | . . 1 11 . 7 . Parts Built 5 | . . . . 1 4 . Matter 848 | . . . . 380 468 . Time 210 | . . . . 94 116 . Total Part Build Rating 33 | . . . . 5 28 . Parts Repaired . | . . . . . . . Time . | . . . . . . . Parts Recycled . | . . . . . . . Recycled Matter . | . . . . . . . Retrieved Matter . | . . . . . . . Retrieved Components 21 | . 9 4 . . 8 . Parts Scanalyzed 13 | . . 1 11 . 1 . Part Schematics Acquired 13 | . . 1 11 . 1 . Parts Damaged 1 | . . . 1 . . . Bothacking | -11 -10 -9 -8 -7 -6 -5 ------------ Run | Scr Mat Mat Mat Fac Fac Fac Used RIF Installer . | . . . . . . . Robots Hacked . | . . . . . . . Non-combat . | . . . . . . . Combat . | . . . . . . . Robot Hacks Applied . | . . . . . . . Relay Couplers Released . | . . . . . . . Robots Rewired . | . . . . . . . Allies Hacked . | . . . . . . . Hacks Repelled . | . . . . . . . Allies | -11 -10 -9 -8 -7 -6 -5 -------- Run | Scr Mat Mat Mat Fac Fac Fac Total Allies 2 | . . . . 2 . . Largest Group 2 | . . . . 2 . . Highest-Rated Group 64 | . . . . 64 . . Highest-Rated Ally 32 | . . . . 32 . . Total Orders . | . . . . . . . Ally Attacks 1 | . . . . 1 . . Total Damage 239 | . . . . 239 . . Kills 2 | . . . . 2 . . Allies Corrupted . | . . . . . . . Allies Melted . | . . . . . . . Intel | -11 -10 -9 -8 -7 -6 -5 ------- Run | Scr Mat Mat Mat Fac Fac Fac Robot Analysis Total . | . . . . . . . Derelict Logs Recovered . | . . . . . . . Drone Launches . | . . . . . . . Drone Recoveries . | . . . . . . . Exploration | -11 -10 -9 -8 -7 -6 -5 ------------- Run | Scr Mat Mat Mat Fac Fac Fac Turns Passed 4649 | 10 617 462 1121 326 1783 330 Spaces Moved 2894 | 2 327 259 634 218 1123 331 Core 117 | . . . . . . 117 Treads . | . . . . . . . Legs 553 | 2 170 . 123 . 163 95 Wheels 2105 | . 157 259 511 218 960 . Hover 119 | . . . . . . 119 Flight . | . . . . . . . Fastest Speed 50 | 120 110 96 103 110 100 50 Average Speed 117 | 120 144 109 122 110 117 87 Slowest Speed 550 | 120 150 140 270 110 190 550 Overloaded Moves . | . . . . . . . Propulsion Burnouts . | . . . . . . . Robots Hopped . | . . . . . . . Cave-ins Triggered . | . . . . . . . Exploration Rate (%) 30 | 2 66 33 56 7 37 15 Regions Visited 6 Branch Regions . Pre-discovered Areas . | . . . . . . . Known Exits Taken . | . . . . . . . Unknown Exits Taken 6 | 1 1 1 1 1 1 . Scrap Searched . | . . . . . . . Spaces Dug . | . . . . . . . Terrain Destroyed 70 | . . . 9 . 61 . Melee . | . . . . . . . Projectile 10 | . . . . . 10 . AOE 60 | . . . 9 . 51 . Terrain Rammed . | . . . . . . . Walls Destroyed . | . . . . . . . Machines Disabled . | . . . . . . . Actions | -11 -10 -9 -8 -7 -6 -5 --------- Run | Scr Mat Mat Mat Fac Fac Fac Total 3668 | 9 397 354 844 297 1404 363 Wait 182 | 8 . 8 30 62 64 10 Move 2888 | 1 326 258 633 217 1122 331 Hop . | . . . . . . . Pick Up 118 | . 16 20 40 5 34 3 Fast Attach 15 | . 1 . 3 . 6 5 Attach 66 | . 4 15 23 3 18 3 Detach . | . . . . . . . Swap 29 | . 4 2 11 1 11 . Drop 61 | . 5 3 22 4 25 2 Fire 289 | . 41 48 81 5 109 5 Melee . | . . . . . . . Ram 10 | . . . 1 . 8 1 Kick 10 | . . . . . 7 3 Crush . | . . . . . . . Escape Stasis . | . . . . . . . Rewire . | . . . . . . . Trap . | . . . . . . . Miscellaneous . | . . . . . . . Route ------- -11/Scrapyard -10/Materials (discovered 4 exits: *Mat x3 / [*Min]) -9/Materials -8/Materials -7/Factory (discovered 2 exits: *Fac / [*Sto]) -6/Factory -5/Factory History --------- Turn | Location | Event 9 | -11/Scrapyard | Discovered new exit (range 1) 11 | -11/Scrapyard | Entered Materials 39 | -10/Materials | Discovered new exit (range 15) 105 | -10/Materials | Discovered new exit (range 15) 314 | -10/Materials | Build established: Mutant 458 | -10/Materials | Discovered new exit (range 16) 554 | -10/Materials | Discovered new exit (range 12) 628 | -10/Materials | Entered another Materials area 628 | -9/Materials | Evolved 2 slots: Power x1, Propulsion x1 669 | -9/Materials | Build established: Hauler-Mutant 771 | -9/Materials | Lost 3 parts (1p1n1w) 1044 | -9/Materials | Discovered new exit (range 15) 1090 | -9/Materials | Entered another Materials area 1090 | -8/Materials | Evolved 2 slots: Utility x2 1387 | -8/Materials | Destroyed 11 combat bots 1395 | -8/Materials | Lost 10 parts (4p3n1u2w) 2189 | -8/Materials | Discovered new exit (range 16) 2211 | -8/Materials | Entered Factory 2211 | -7/Factory | Evolved 2 slots: Utility x1, Weapon x1 2270 | -7/Factory | Fabricated Y-54 Guardian (x2) 2369 | -7/Factory | Fabricated Imp. System Shield (x1) 2467 | -7/Factory | Discovered new exit (range 8) 2516 | -7/Factory | Discovered new exit (range 15) 2537 | -7/Factory | Entered another Factory area 2537 | -6/Factory | Evolved 2 slots: Utility x1, Weapon x1 2642 | -6/Factory | Garrison activated, responded to threat 2695 | -6/Factory | Build established: Hacker-Gunner 3349 | -6/Factory | Lost 3 parts (1n1u1w) 3402 | -6/Factory | Fabricated Adv. Coolant Injector? 3815 | -6/Factory | Fabricated Imp. Force Field (x2) 4078 | -6/Factory | Lost 7 parts (2p1n1u3w) 4274 | -6/Factory | Discovered new exit (range 22) 4278 | -6/Factory | Build established: Hacker-Mutant 4320 | -6/Factory | Entered another Factory area 4320 | -5/Factory | Evolved 2 slots: Utility x2 4489 | -5/Factory | Lost 8 parts (1p3n4u) 4515 | -5/Factory | Core integrity fell below 50% 4611 | -5/Factory | Core integrity fell below 20% 4650 | -5/Factory | Destroyed by H-66 Slayer with Gauss Rifle Last Messages --------------- 04616_ R-10 Processor collects Wheel. 04616_ P-70 Sage resets R-10 Processor, system corruption cleaned. 04617_ Slug penetrates Wall. 04617_ Penetrated by Slug. 04617_ Hvy. Gatling Laser destroyed. 04620_ Slug penetrates Wall. 04621_ U-05 Engineer lays Concrete. 04622_ Slug penetrates Wall. 04622_ Cmb. Airjet destroyed. 04623_ U-05 Engineer lays Concrete. 04625_ U-05 Engineer builds a Wall. 04625_ Acquired Antigrav System. 04630_ Slug penetrates Wall. 04631_ Imp. Hacking Suite destroyed. 04644_ Subcomponent Replicator disabled. 04646_ K-01 Serf collects debris. 04648_ Penetrated by Slug. 04648_ Antigrav System destroyed. 04649_ K-01 Serf collects debris. 04650_ Penetrated by Slug. Map ----- +----------------------------------------------------+ | ????????????????????????????????# #??# ! | | ??????????????????????????????### #############+ | | ??????????????????????????????# #?????????# | | ??????????????????????????????# ########### | | ??????????????????????????????# | | ??????????????????????????????+ | | ??????????????????????????????# | | ??????????????????????????????# ########## | | ??????????????????????????????# #???????## | | ??????????????????????????????## ########## | | ????????????????????????###+#### #?# = # | | ?????????????????????#### ### | + | | ?????????????????????#""" kk p ""# # | | ?????????????????????#""F p "" ""# # | | ?????????????????????#"" """"" T"# ?### | | ?????????????????????#""" """" [[ ""# ???# | | ?????????????????????#""" g [ ""#####????# | | ?????????????????????#### ####??????? | | ????????????????????????# ? | | ????????????????????????# ###############??? | | ????????????????????????# #?????????????????# | | ????????????????????????# #?????????????????# | | ????????????????????????# #?????????????????# | | ????????????????????????# #?????????????????# | | ????????????????????????# #?????????????????# | | ????????????????????????#@ A#?????????????????? | | ????????????????????????+ +??????????????????# | | ????????????????????????# R#??????????????????? | | ????????????????????????# #??????????????????? | | ????????????????????????# #??????????????????? | | ????????????????????????# #??????????????????? | | ????????????????????????# #??????????????????? | | ????????????????????????# #??????????????????? | | ????????????????????????#k +??????????????????? | | ????????????????????????# h#??????????????????? | | ????????????????????????# h#??????????????????? | | ????????????????????????# #??????????????????? | | ????????????????????????? #??????????????????? | | ????????????????????????? R#??????????????????? | | ????????????????????????? #??????????????????? | | ????????????????????????? #??????????????????? | | ????????????????????????? #??????????????????? | | ????????????????????????? #??????????????????? | | ????????????????????????? #??????????????????? | | ????????????????????????? k#??????????????????? | | ????????????????????????? ???????????????????? | | ????????????????????????? ?????????????????????? | | ?????????????????????????????????????????????????? | | ?????????????????????????????????????????????????? | | ?????????????????????????????????????????????????? | +----------------------------------------------------+ Best States ------------- Heat Dissipation 51 Coolant Potential 100 Energy Generation 33 Energy Capacity 900 Matter Stores 300 Matter Capacity 550 Sight Range 22 Terrain Scan Density 10 ECM Strength 3 Jamming Range 8 Base Temperature (-) 100 Evasion (%) 53 Targeting Accuracy 8 Matter Filtering 30 Offensive Hacking 22 Defensive Hacking 12 Item Schematics ----------------- Hacking Suite | -9/Materials | Scanalyzed Minigun | -8/Materials | Scanalyzed Adv. Signal Interpreter | -8/Materials | Scanalyzed Adv. Targeting Computer | -8/Materials | Scanalyzed Imp. Propulsion Shielding | -8/Materials | Scanalyzed Transmission Jammer | -8/Materials | Scanalyzed Imp. Sensor Array | -8/Materials | Scanalyzed Missile Launcher | -8/Materials | Scanalyzed Cryofiber Web | -8/Materials | Scanalyzed Imp. Heat Sink | -8/Materials | Scanalyzed Lgt. Nuclear Core | -8/Materials | Scanalyzed Shield Generator | -8/Materials | Scanalyzed Antimatter Reactor | -6/Factory | Hacked Linear Gravjet | -6/Factory | Hacked Adv. Thermal Defense Suite | -6/Factory | Hacked Hvy. Phase Cannon | -6/Factory | Hacked Energy Well | -6/Factory | Scanalyzed Imp. Force Field | -6/Factory | Hacked Imp. Transmission Jammer | -6/Factory | Hacked Robot Schematics ------------------ None Fabricated ------------ Y-54 Guardian | x2 | -7/Factory | Preloaded Imp. System Shield | x1 | -7/Factory | Preloaded Adv. Coolant Injector | x2 | -6/Factory | Preloaded Imp. Force Field | x2 | -6/Factory Alien Tech Used ----------------- None Achievements -------------- None Challenges ------------ None Game ------ Seed DisruptionInertialNetwork Manual? 0 Play Time 00:57:52 Cumulative 49.2 hours Start 2021.08.29 @ 23:39:28 End 2021.08.30 @ 00:36:30 Sessions 1 Manual Loads 0 Difficulty Rogue Special Mode None Game No. 74 Rogue 74 Adventurer 0 Explorer 0 Win Type - Total 0 Types 0/0/0/0/0/0/0/0/0 Lore% 27 Gallery% 45 Achievement% 30 Wizard Run 0 Options --------- ASCII 0 Keyboard 0 Movement Mouse Keybinds 0 Fullscreen 1 Font 16/Cog Map View 76x50 Tactical HUD 1 Map Filters NONE Filters NONE Steam 1 RUN: 9da6286c-9cd0-4389-ad0b-d2c67ddf9ea0